[Event "1st Goa GM Open 2018"]
[Site "Taleigao"]
[Date "2018.10.14"]
[Round "3"]
[White "Anwesh, Upadhyaya"]
[Black "Ganesh, Bhat R."]
[Result "1-0"]
[ECO "E04"]
[WhiteElo "2381"]
[BlackElo "2176"]
[Annotator "NA"]
[PlyCount "61"]
[EventDate "2018.10.13"]
[EventType "swiss"]
[EventCountry "IND"]
[SourceTitle "playchess.com"]
[Source "ChessBase"]
[SourceQuality "1"]
[TimeControl "5400+30"]

1. d4 Nf6 2. c4 e6 3. g3 d5 4. Nf3 dxc4 5. Bg2 a6 6. O-O c5 7. dxc5 Qxd1 8. Rxd1 Bxc5 9. Ne5 Ra7 10. Nxc4 b5 11. Bf4 {LiveBook: 6 Partien} Rd7 12. Nbd2 bxc4 13. Bxb8 Bb7 14. Nxc4 Bxg2 15. Kxg2 Rxd1 16. Rxd1 (16. Rb1 Rc1 17. Rxc1 O-O 18. Rd1 Nd5 $2 ({Black should try} 18... Rxb8 $19 19. f4 h6) 19. Bf4 f6) 16... O-O 17. Bf4 Nd5 18. Kf3 f6 19. Bd6 Bxd6 $16 20. Nxd6 Rd8 21. Nc4 Rc8 22. b3 Kf8 23. Rd2 Ke7 24. e4 Nb4 25. Ke3 g5 26. f4 Nc6 27. a3 Nb8 28. Kd3 Nd7 29. b4 Nf8 30. a4 Ng6 31. Kc3 1-0

[Event "1st Goa GM Open 2018"]
[Site "Taleigao"]
[Date "2018.10.14"]
[Round "3"]
[White "Audi Ameya"]
[Black "Amonatov, Farrukh"]
[Result "0-1"]
[ECO "B90"]
[WhiteElo "2375"]
[BlackElo "2615"]
[Annotator "RC"]
[PlyCount "60"]
[EventDate "2018.10.13"]
[EventType "swiss"]
[EventCountry "IND"]
[SourceTitle "playchess.com"]
[Source "ChessBase"]
[SourceQuality "1"]
[TimeControl "5400+30"]

1. e4 c5 2. Nf3 d6 3. d4 cxd4 4. Nxd4 Nf6 5. Nc3 a6 6. Be3 e5 7. Nb3 Be7 8. f3 Be6 9. Qd2 O-O 10. O-O-O Nbd7 11. g4 b5 12. g5 Nh5 13. Nd5 Bxd5 14. exd5 f5 15. Rg1 f4 16. Bf2 Bxg5 17. Na5 Bh4 18. Nc6 Bxf2 19. Qxf2 Qb6 {[%emt 0:21:15]} 20. Qg2 {[%emt 0:06:53]} Ndf6 {[%emt 0:10:59]} 21. Ne7+ {[%emt 0:37:44]} Kh8 {[%emt 0:03:28]} 22. Bd3 {[%emt 0:00:02]} Ra7 {[%emt 0:06:18]} 23. Ng6+ {[%emt 0:09:12]} hxg6 24. Bxg6 Qe3+ 25. Kb1 {[%emt 0:03:00]} e4 {[%emt 0:05:56]} 26. Qg5 {[%emt 0:05:19]} Qxf3 {[%emt 0:03:59]} 27. Rdf1 {[%emt 0:01:59]} Qh3 {[%emt 0:05:42]} 28. Bf5 {[%emt 0:00:58]} Qe3 {[%emt 0:00:03]} 29. Qg6 {[%emt 0:00:30]} f3 {[%emt 0:02:08]} 30. Re1 {[%emt 0:06:38]} Qh6 0-1

[Event "1st Goa GM Open 2018"]
[Site "Taleigao"]
[Date "2018.10.14"]
[Round "3"]
[White "Pradeep Kumar R A"]
[Black "Sivuk, Vitaly"]
[Result "0-1"]
[ECO "A06"]
[WhiteElo "2279"]
[BlackElo "2545"]
[Annotator "ChessBase"]
[PlyCount "55"]
[EventDate "2018.10.13"]
[EventType "swiss"]
[EventCountry "IND"]
[SourceTitle "playchess.com"]
[Source "ChessBase"]
[SourceQuality "1"]
[TimeControl "5400+30"]

1. Nf3 {[%emt 0:00:23]} d5 {[%emt 0:00:00]} 2. c4 {[%emt 0:02:40]} Nc6 {[%emt 0:03:36]} 3. g3 {[%emt 0:00:30]} d4 {[%emt 0:00:30]} 4. Bg2 {[%emt 0:00:05]} e5 {[%emt 0:00:07]} 5. O-O {[%emt 0:00:05]} Nf6 {[%emt 0:00:37]} 6. d3 {[%emt 0:00:05]} Be7 {[%emt 0:01:01]} 7. b4 {[%emt 0:00:20]} Nxb4 {[%emt 0:02:08]} 8. Nxe5 {[%emt 0:00:25]} O-O {[%emt 0:00:10]} 9. Nd2 {[%emt 0:05:42]} Bd6 {[%emt 0:07:23]} 10. a3 {[%emt 0:01:45]} Na6 {[%emt 0:01:14]} 11. Nef3 {[%emt 0:00:09]} c5 {[%emt 0:00:34]} 12. Rb1 {[%emt 0:04:13]} Rb8 {[%emt 0:02:31]} 13. Ng5 {[%emt 0:16:46]} b6 {[%emt 0:04:12]} 14. Nge4 {[%emt 0:01:47]} Nxe4 {[%emt 0:01:13]} 15. Nxe4 {[%emt 0:00:04]} Bc7 {[%emt 0:00:14]} 16. f4 {[%emt 0:00:38]} Bb7 {[%emt 0:07:30]} 17. f5 {[%emt 0:00:21]} f6 {[%emt 0:00:06]} 18. Rf2 {[%emt 0:09:02]} Be5 {[%emt 0:04:15]} 19. Qf1 {[%emt 0:02:45]} Qc7 {[%emt 0:04:18]} 20. Bf3 {[%emt 0:00:48]} Bc6 {[%emt 0:13:27]} 21. Bd2 {[%emt 0:04:59]} Rbd8 {[%emt 0:03:54]} 22. Qh3 {[%emt 0:08:17]} Nb8 {[%emt 0:01:47]} 23. Rg2 {[%emt 0:05:17]} Rf7 {[%emt 0:08:37]} 24. Rf1 {[%emt 0:07:22]} Nd7 {[%emt 0:02:08]} 25. Rgf2 {[%emt 0:15:49]} h6 {[%emt 0:08:49]} 26. Qg2 {[%emt 0:04:58]} Kf8 {[%emt 0:02:05]} 27. h4 {[%emt 0:00:27]} Rc8 {[%emt 0:04:58]} 28. Bh5 {[%emt 0:00:23]} 0-1

[Event "1st Goa GM Open 2018"]
[Site "Taleigao"]
[Date "2018.10.15"]
[Round "4"]
[White "Anurag, Mhamal"]
[Black "Deshpande, Aniruddha"]
[Result "1-0"]
[ECO "A62"]
[WhiteElo "2495"]
[BlackElo "2213"]
[Annotator "ChessBase"]
[PlyCount "109"]
[EventDate "2018.10.13"]
[EventType "swiss"]
[EventCountry "IND"]
[SourceTitle "playchess.com"]
[Source "ChessBase"]
[SourceQuality "1"]
[TimeControl "5400+30"]

1. d4 Nf6 2. c4 c5 3. d5 e6 4. g3 exd5 5. cxd5 d6 6. Nc3 g6 7. Bg2 Bg7 8. Nf3 O-O 9. O-O Re8 10. Bf4 Nh5 11. Bg5 Qb6 12. Qc1 Nd7 13. h3 Ne5 14. Nxe5 Bxe5 15. g4 Nf6 16. e3 Nd7 17. Rb1 a6 18. Ne4 Qc7 19. f4 Bg7 20. f5 b5 21. Qe1 Bb7 22. fxg6 hxg6 23. Rd1 Rxe4 24. Bxe4 Re8 25. Rxf7 Kxf7 26. Qf2+ Nf6 27. Bxg6+ Kxg6 28. Qf5+ Kf7 29. Bxf6 Kg8 30. Rf1 Qf7 31. Qg5 Rf8 32. Rf5 Qxf6 33. Rxf6 Rxf6 34. Qh5 Rf7 35. g5 Re7 36. g6 Bc8 37. Qg5 Re8 38. h4 Bxb2 39. Qf4 Rf8 40. Qh6 Rf3 41. Kg2 Bg4 42. Qg5 Be5 43. Qxg4 Rg3+ 44. Qxg3 Bxg3 45. Kxg3 b4 46. Kf3 a5 47. Ke2 Kg7 48. h5 c4 49. Kd2 a4 50. e4 a3 51. Kc2 Kf6 52. e5+ dxe5 53. d6 e4 54. d7 Ke7 55. g7 1-0

[Event "1st Goa GM Open 2018"]
[Site "Taleigao"]
[Date "2018.10.17"]
[Round "6"]
[White "Vignesh N R"]
[Black "Swati Ghate"]
[Result "0-1"]
[ECO "A40"]
[WhiteElo "2447"]
[BlackElo "2215"]
[Annotator "RC"]
[PlyCount "146"]
[EventDate "2018.10.13"]
[EventType "swiss"]
[EventCountry "IND"]
[SourceTitle "playchess.com"]
[Source "ChessBase"]
[SourceQuality "1"]
[TimeControl "5400+30"]

1. d4 Nf6 2. c4 e6 3. g3 d5 4. Nf3 Bb4+ 5. Bd2 Be7 6. Bg2 c6 7. Qc2 O-O 8. O-O b6 9. Rd1 Nbd7 10. b3 Ba6 11. a4 Bd6 12. a5 Qe7 13. Bf4 Bb4 14. Bd2 Bd6 15. Bg5 h6 16. Bxf6 Nxf6 17. Nbd2 Bb4 18. axb6 axb6 19. e4 Bb7 20. e5 Nh7 21. Ne1 Qd7 22. c5 Ba6 23. Ra4 bxc5 24. Rda1 Qb7 25. dxc5 Bb5 26. Rxa8 Rxa8 27. Rc1 Ra5 28. Qb2 Ba6 29. Qd4 Nf8 30. Bf1 Bxf1 31. Nxf1 Bxe1 32. Rxe1 Qxb3 33. Ra1 Rxa1 34. Qxa1 Qb7 35. Qa5 Ng6 36. Qd8+ Kh7 37. Qd6 Qb2 38. f4 Qd4+ 39. Kg2 Qe4+ 40. Kf2 d4 41. h4 h5 42. Qd7 Kg8 43. Qd8+ Nf8 44. Qd6 f6 45. exf6 gxf6 46. Qe7 Qc2+ 47. Kg1 Qf5 48. Qd6 Qe4 49. Qe7 Qf5 50. Qd6 e5 51. Qxc6 e4 52. Qe8 Qe6 53. Qxh5 e3 54. Qe2 Nd7 55. f5 Qd5 56. c6 Qxc6 57. Qg4+ Kf7 58. Qxd4 e2 59. Qf2 exf1=Q+ 60. Qxf1 Ne5 61. Kh2 Qe4 62. Kh3 Ng4 63. Qc1 Nf2+ 64. Kh2 Qxf5 65. Kg2 Ng4 66. Qc4+ Kg7 67. Qc7+ Kg6 68. h5+ Qxh5 69. Qc8 Qh2+ 70. Kf3 Ne5+ 71. Ke3 Qxg3+ 72. Kd2 Qg2+ 73. Kc1 Qc6+ 0-1

[Event "1st Goa GM Open 2018"]
[Site "Taleigao"]
[Date "2018.10.17"]
[Round "6"]
[White "Karthik Kumar Pradeep"]
[Black "Neelotpal, Das"]
[Result "0-1"]
[ECO "A40"]
[WhiteElo "2265"]
[BlackElo "2436"]
[Annotator "RC"]
[PlyCount "104"]
[EventDate "2018.10.13"]
[EventType "swiss"]
[EventCountry "IND"]
[SourceTitle "playchess.com"]
[Source "ChessBase"]
[SourceQuality "1"]
[TimeControl "5400+30"]

1. d4 {[%emt 0:00:08]} Nf6 {[%emt 0:00:00]} 2. c4 {[%emt 0:00:16]} e6 {[%emt 0:00:00]} 3. g3 {[%emt 0:00:07]} d5 {[%emt 0:00:01]} 4. Nf3 {[%emt 0:00:09]} Bb4+ {[%emt 0:00:03]} 5. Bd2 {[%emt 0:00:06]} Be7 {[%emt 0:00:05]} 6. Bg2 {[%emt 0:00:25]} O-O {[%emt 0:00:16]} 7. O-O {[%emt 0:00:06]} c6 {[%emt 0:00:20]} 8. b3 {[%emt 0:01:35]} Nbd7 {[%emt 0:02:06]} 9. Nc3 {[%emt 0:01:03]} b6 {[%emt 0:00:39]} 10. Bf4 {[%emt 0:06:15]} Ba6 {[%emt 0:09:36]} 11. cxd5 {[%emt 0:03:26]} cxd5 {[%emt 0:00:35]} 12. a4 {[%emt 0:01:45]} Nh5 {[%emt 0:00:52]} 13. Bd2 {[%emt 0:05:54]} Bb7 {[%emt 0:02:38]} 14. Qb1 {[%emt 0:12:26]} Rc8 {[%emt 0:03:03]} 15. Rc1 {[%emt 0:01:47]} a6 {[%emt 0:00:39]} 16. e3 {[%emt 0:22:41]} Nhf6 {[%emt 0:10:17]} 17. Ne1 {[%emt 0:02:29]} Bd6 {[%emt 0:05:51]} 18. Nd3 {[%emt 0:03:21]} Qe7 {[%emt 0:03:51]} 19. Ne2 {[%emt 0:13:56]} h5 {[%emt 0:03:42]} 20. Ra2 {[%emt 0:02:57]} h4 {[%emt 0:08:33]} 21. Rac2 {[%emt 0:01:15]} hxg3 {[%emt 0:05:20]} 22. hxg3 {[%emt 0:00:03]} Ng4 {[%emt 0:09:44]} 23. b4 {[%emt 0:01:03]} Rb8 {[%emt 0:05:56]} 24. Qa1 {[%emt 0:03:00]} a5 {[%emt 0:02:57]} 25. Nc3 {[%emt 0:03:30]} Ba6 {[%emt 0:06:57]} 26. Nb5 {[%emt 0:00:26]} Bxb5 {[%emt 0:00:19]} 27. axb5 {[%emt 0:00:02]} Ra8 {[%emt 0:04:03]} 28. bxa5 {[%emt 0:02:56]} bxa5 {[%emt 0:00:28]} 29. e4 {[%emt 0:01:47]} dxe4 {[%emt 0:02:28]} 30. Bxe4 {[%emt 0:00:02]} Ra7 {[%emt 0:00:04]} 31. Rc6 {[%emt 0:01:37]} Ngf6 {[%emt 0:04:38]} 32. Bg2 {[%emt 0:00:40]} Nb8 {[%emt 0:02:00]} 33. R6c2 {[%emt 0:01:17]} Nbd7 34. Rc6 {[%emt 0:05:08]} Nb8 {[%emt 0:03:25]} 35. R6c2 {[%emt 0:00:01]} Nbd7 {[%emt 0:00:21]} 36. Bc6 {[%emt 0:00:10]} a4 {[%emt 0:01:56]} 37. Ra2 {[%emt 0:00:37]} a3 {[%emt 0:02:19]} 38. Qb1 {[%emt 0:01:41]} Ra4 {[%emt 0:01:58]} 39. Bc3 {[%emt 0:01:18]} Nd5 {[%emt 0:00:37]} 40. Ba1 {[%emt 0:01:20]} N7b6 {[%emt 0:00:47]} 41. Nc5 {[%emt 0:00:21]} Rc4 {[%emt 0:00:22]} 42. Rxc4 {[%emt 0:00:48]} Nxc4 {[%emt 0:00:01]} 43. Na6 {[%emt 0:00:28]} Qg5 {[%emt 0:00:34]} 44. Qb3 {[%emt 0:00:45]} Na5 {[%emt 0:00:56]} 45. Qd3 {[%emt 0:00:17]} Nxc6 {[%emt 0:00:13]} 46. bxc6 {[%emt 0:00:01]} Qc1+ {[%emt 0:00:07]} 47. Kh2 {[%emt 0:00:41]} Qxc6 {[%emt 0:00:06]} 48. Rc2 {[%emt 0:00:01]} Qb7 {[%emt 0:01:30]} 49. Nc5 {[%emt 0:00:54]} Qb1 {[%emt 0:00:23]} 50. Bc3 {[%emt 0:01:20]} a2 {[%emt 0:00:36]} 51. Nxe6 {[%emt 0:00:33]} fxe6 {[%emt 0:00:20]} 52. Qe2 {[%emt 0:00:01]} Rf6 {[%emt 0:00:34]} 0-1

[Event "1st Goa GM Open 2018"]
[Site "Taleigao"]
[Date "2018.10.17"]
[Round "6"]
[White "Hari Madhavan N B"]
[Black "Fominyh, Alexander"]
[Result "1/2-1/2"]
[ECO "A32"]
[WhiteElo "2224"]
[BlackElo "2405"]
[Annotator "RC"]
[PlyCount "84"]
[EventDate "2018.10.13"]
[EventType "swiss"]
[EventCountry "IND"]
[SourceTitle "playchess.com"]
[Source "ChessBase"]
[SourceQuality "1"]
[TimeControl "5400+30"]

1. d4 {[%emt 0:00:00]} Nf6 {[%emt 0:00:00]} 2. c4 {[%emt 0:00:00]} c5 {[%emt 0:00:00]} 3. Nf3 {[%emt 0:00:00]} cxd4 {[%emt 0:00:10]} 4. Nxd4 {[%emt 0:00:07]} e6 {[%emt 0:00:11]} 5. g3 {[%emt 0:00:30]} Qc7 {[%emt 0:00:13]} 6. b3 {[%emt 0:01:39]} Bb4+ {[%emt 0:09:19]} 7. Bd2 {[%emt 0:00:23]} Bc5 {[%emt 0:00:05]} 8. e3 {[%emt 0:07:48]} e5 {[%emt 0:05:14]} 9. Nb5 {[%emt 0:06:35]} Qc6 {[%emt 0:00:39]} 10. Rg1 {[%emt 0:00:06]} d5 {[%emt 0:14:07]} 11. Bg2 {[%emt 0:01:22]} Be6 {[%emt 0:00:15]} 12. N1c3 {[%emt 0:03:24]} Na6 {[%emt 0:01:11]} 13. cxd5 {[%emt 0:04:24]} Nxd5 {[%emt 0:00:31]} 14. Bxd5 {[%emt 0:00:16]} Bxd5 {[%emt 0:00:26]} 15. Nxd5 {[%emt 0:00:06]} Qxd5 {[%emt 0:00:29]} 16. Nc3 {[%emt 0:00:08]} Qe6 {[%emt 0:00:40]} 17. Qf3 {[%emt 0:00:09]} O-O {[%emt 0:06:43]} 18. Qd5 {[%emt 0:04:07]} Qe7 {[%emt 0:00:17]} 19. Ke2 {[%emt 0:00:20]} Rad8 {[%emt 0:04:57]} 20. Qe4 {[%emt 0:03:04]} b5 {[%emt 0:08:36]} 21. Rgd1 {[%emt 0:05:40]} Nc7 {[%emt 0:10:09]} 22. Be1 {[%emt 0:04:29]} Qe6 {[%emt 0:00:37]} 23. Rxd8 {[%emt 0:02:05]} Rxd8 {[%emt 0:00:03]} 24. Rd1 {[%emt 0:00:44]} Rxd1 {[%emt 0:00:28]} 25. Kxd1 {[%emt 0:00:09]} f5 {[%emt 0:03:22]} 26. Qb7 {[%emt 0:04:37]} Bb6 {[%emt 0:01:24]} 27. e4 {[%emt 0:04:50]} fxe4 {[%emt 0:04:42]} 28. Qxe4 {[%emt 0:09:55]} h6 {[%emt 0:00:24]} 29. Qd3 {[%emt 0:03:55]} Qc6 {[%emt 0:02:58]} 30. Ne4 {[%emt 0:04:19]} Qd5 {[%emt 0:05:24]} 31. Qxd5+ {[%emt 0:02:09]} Nxd5 {[%emt 0:01:17]} 32. Ke2 {[%emt 0:00:35]} a6 {[%emt 0:03:52]} 33. Bc3 {[%emt 0:05:57]} Nf6 {[%emt 0:03:46]} 34. Nxf6+ {[%emt 0:04:25]} gxf6 {[%emt 0:00:04]} 35. g4 {[%emt 0:00:07]} Kg7 {[%emt 0:03:43]} 36. f3 {[%emt 0:01:41]} h5 {[%emt 0:00:16]} 37. h3 {[%emt 0:08:48]} Kg6 {[%emt 0:01:21]} 38. Kd3 {[%emt 0:01:51]} hxg4 {[%emt 0:00:09]} 39. hxg4 {[%emt 0:00:42]} Kf7 {[%emt 0:00:06]} 40. Ke4 {[%emt 0:00:07]} Ke6 {[%emt 0:00:06]} 41. Bb2 {[%emt 0:00:21]} Bc7 {[%emt 0:00:13]} 42. Bc1 {[%emt 0:00:25]} Bd6 1/2-1/2

[Event "1st Goa GM Open 2018"]
[Site "Taleigao"]
[Date "2018.10.17"]
[Round "6"]
[White "Senthil Maran K"]
[Black "Rakesh Kumar Jena"]
[Result "0-1"]
[ECO "A40"]
[WhiteElo "2216"]
[BlackElo "2388"]
[Annotator "NA RC"]
[PlyCount "7"]
[EventDate "2018.10.13"]
[EventType "swiss"]
[EventCountry "IND"]
[SourceTitle "playchess.com"]
[Source "ChessBase"]
[SourceQuality "1"]
[TimeControl "5400+30"]

{[%evp 7,7,76]} 1. d4 {[%emt 0:14:54]} g6 {[%emt 0:00:00]} 2. c4 {[%emt 0:00:31]} Bg7 {[%emt 0:00:00]} 3. g3 {[%emt 0:00:13]} Kf8 $146 {[%emt 0:00:00]} ({Predecessor:} 3... Nf6 4. Bg2 d5 5. cxd5 Nxd5 6. Nf3 c5 7. e4 Nf6 8. e5 Nfd7 9. e6 fxe6 10. Ng5 Nf6 11. dxc5 Qxd1+ 12. Kxd1 O-O 13. Ke2 Na6 14. Nc3 {½-½ (27) Ding,L (2777)-Li,C (2732) Riadh 2017}) 4. Bg2 {[%emt 0:00:10]} 0-1

[Event "1st Goa GM Open 2018"]
[Site "Taleigao"]
[Date "2018.10.17"]
[Round "6"]
[White "Michelle Catherina, P."]
[Black "Sai Agni Jeevitesh, J."]
[Result "1-0"]
[ECO "C11"]
[WhiteElo "2147"]
[BlackElo "2362"]
[Annotator "NA RC"]
[PlyCount "113"]
[EventDate "2018.10.13"]
[EventType "swiss"]
[EventCountry "IND"]
[SourceTitle "playchess.com"]
[Source "ChessBase"]
[SourceQuality "1"]
[TimeControl "5400+30"]

1. e4 {[%emt 0:02:12]} e6 {[%emt 0:00:00]} 2. d4 {[%emt 0:00:06]} d5 {[%emt 0:00:00]} 3. Nc3 {[%emt 0:00:07]} Nf6 {[%emt 0:00:04]} 4. e5 {[%emt 0:00:53]} Nfd7 5. Nce2 {[%emt 0:00:11]} c5 {[%emt 0:00:56]} 6. c3 {[%emt 0:00:16]} Nc6 {[%emt 0:00:01]} 7. f4 {[%emt 0:02:01]} cxd4 {[%emt 0:02:06]} 8. cxd4 {[%emt 0:01:44]} a5 {[%emt 0:00:35] C11: French: Classical System: 4 e5 and 4 Bg5 dxe4} (8... f6 9. Nf3 fxe5 10. fxe5 Bb4+ 11. Bd2 O-O 12. Bxb4 Nxb4 13. Qd2 a5 14. Nc3 Nb6 15. Be2 Nc4 16. Bxc4 dxc4 {0-1 (40) Shabalov,A (2585)-Ni,H (2710) Beijing 2008}) 9. Nf3 {[%emt 0:04:55]} Nb6 {[%emt 0:00:28]} 10. g3 {[%emt 0:06:41]} Bd7 {[%emt 0:04:17]} 11. Bh3 {[%emt 0:02:44]} a4 {[%emt 0:02:42]} 12. O-O {[%emt 0:04:28]} g6 {[%emt 0:20:03]} 13. Kh1 $146 {[%emt 0:10:22]} ({Predecessor:} 13. f5 exf5 14. Nf4 Be6 15. g4 fxg4 16. Nxe6 fxe6 17. Bxg4 Qd7 18. Ng5 Nd8 19. Qf3 Bg7 20. Qh3 {1-0 (20) Havelka,J (1273)-Lenz,J (1083) LSS email 2013}) 13... Be7 {[%emt 0:08:07]} (13... Nc4 $11) 14. Nc3 {[%emt 0:05:22]} Rc8 {[%emt 0:05:32]} 15. Bd2 {[%emt 0:13:15]} Na7 {[%emt 0:13:52]} 16. Qe2 {[%emt 0:11:35]} Nc4 $1 {[%emt 0:04:02]} 17. Be1 {[%emt 0:05:26]} b5 {[%emt 0:06:00]} 18. b3 {[%emt 0:14:12]} Na3 {[%emt 0:02:47]} 19. Rf2 {[%emt 0:06:08]} axb3 {[%emt 0:08:16]} 20. axb3 {[%emt 0:00:25]} b4 {[%emt 0:01:43]} 21. Na2 {[%emt 0:04:45]} Qb6 {[%emt 0:01:11]} 22. Rc1 {[%emt 0:00:43]} ({Better is} 22. Qd1 $15) 22... Rxc1 {[%emt 0:03:24]} 23. Nxc1 {[%emt 0:00:02]} Bb5 {[%emt 0:00:05]} (23... O-O $17 24. Nd3 Rc8) 24. Qd1 {[%emt 0:02:14]} Nc6 {[%emt 0:01:00]} 25. Rd2 {[%emt 0:01:06]} h6 {[%emt 0:03:05]} 26. Nd3 {[%emt 0:00:31]} Ba6 {[%emt 0:04:43]} ({Don't go for} 26... Nxd4 $2 27. Bf2 $18) 27. Bf2 {[%emt 0:00:19]} Nb5 {[%emt 0:01:01]} 28. Nc5 {[%emt 0:00:57]} Nc3 {[%emt 0:00:06]} 29. Qa1 {[%emt 0:00:33]} Na5 {[%emt 0:01:26]} 30. Rb2 {[%emt 0:00:33]} Bb5 {[%emt 0:01:25]} 31. Be3 {[%emt 0:00:28]} O-O {[%emt 0:02:47]} 32. f5 {[%emt 0:00:29]} exf5 {[%emt 0:00:15]} 33. Bxh6 {[%emt 0:00:17]} Ra8 {[%emt 0:00:19]} (33... Re8 $17 34. Bg2 Nc6) 34. Be3 $19 {[%emt 0:00:36]} ({White should play} 34. g4 $15) 34... Qd8 {[%emt 0:01:29]} 35. Qe1 {[%emt 0:00:40]} Be2 {[%emt 0:01:17]} (35... Bxc5 $17 36. dxc5 Nc6) 36. Bg2 {[%emt 0:00:27]} Nc6 {[%emt 0:02:02]} 37. Rxe2 {[%emt 0:00:33]} Nxe2 {[%emt 0:00:05]} 38. Qxe2 {[%emt 0:00:03]} Ra1+ {[%emt 0:00:06]} 39. Ng1 {[%emt 0:00:48]} Na5 {[%emt 0:01:35]} 40. Qb5 {[%emt 0:00:38]} Bxc5 41. Qxc5 {[%emt 0:00:27]} Nxb3 {[%emt 0:01:01]} 42. Qxb4 {[%emt 0:00:17]} Na5 {[%emt 0:00:21]} 43. Qd6 {[%emt 0:00:33]} Qxd6 {[%emt 0:00:32]} 44. exd6 {[%emt 0:00:01]} Nb7 {[%emt 0:00:42]} 45. d7 {[%emt 0:00:14]} Nd8 {[%emt 0:00:31]} 46. Bg5 {[%emt 0:00:26]} Ra8 {[%emt 0:00:10]} 47. Bxd5 {[%emt 0:00:12]} Rb8 {[%emt 0:00:01]} 48. Bf6 {[%emt 0:01:24]} Rb5 {[%emt 0:00:38]} 49. Bc4 {[%emt 0:00:26]} Rb8 {[%emt 0:00:42]} 50. Nf3 {[%emt 0:00:31]} Rb1+ {[%emt 0:00:43]} 51. Kg2 {[%emt 0:00:04]} Rb2+ {[%emt 0:00:06]} 52. Kh3 {[%emt 0:00:21]} Rb7 {[%emt 0:00:55]} 53. Bxd8 {[%emt 0:00:15]} Rxd7 {[%emt 0:00:01]} 54. Bf6 {[%emt 0:00:12]} Rd6 {[%emt 0:00:22]} 55. Be5 {[%emt 0:00:06]} Rc6 {[%emt 0:00:03]} 56. Bd5 {[%emt 0:00:08]} Ra6 {[%emt 0:00:09]} 57. Ng5 {[%emt 0:00:22]} 1-0

[Event "1st Goa GM Open 2018"]
[Site "Taleigao"]
[Date "2018.10.17"]
[Round "7"]
[White "Malakhatko, Vadim"]
[Black "Anuj Shrivatri"]
[Result "0-1"]
[ECO "E97"]
[WhiteElo "2552"]
[BlackElo "2345"]
[Annotator "ChessBase"]
[PlyCount "80"]
[EventDate "2018.10.13"]
[EventType "swiss"]
[EventCountry "IND"]
[SourceTitle "playchess.com"]
[Source "ChessBase"]
[SourceQuality "1"]
[TimeControl "5400+30"]

1. d4 {[%emt 0:00:00]} Nf6 {[%emt 0:00:00]} 2. c4 {[%emt 0:00:00]} g6 {[%emt 0:00:00]} 3. Nc3 {[%emt 0:00:00]} Bg7 {[%emt 0:00:00]} 4. e4 {[%emt 0:00:00]} d6 {[%emt 0:00:00]} 5. Nf3 {[%emt 0:00:00]} O-O {[%emt 0:00:02]} 6. Be2 {[%emt 0:00:04]} e5 {[%emt 0:00:11]} 7. O-O {[%emt 0:00:07]} Nc6 {[%emt 0:00:09]} 8. d5 {[%emt 0:00:07]} Ne7 {[%emt 0:00:04]} 9. a4 {[%emt 0:00:05]} a5 {[%emt 0:00:06]} 10. Ne1 {[%emt 0:00:06]} Nd7 {[%emt 0:00:06]} 11. Nd3 {[%emt 0:00:06]} f5 {[%emt 0:00:07]} 12. f3 {[%emt 0:00:04]} Kh8 {[%emt 0:00:06]} 13. Bg5 {[%emt 0:03:10]} f4 {[%emt 0:06:33]} 14. Bh4 {[%emt 0:00:14]} b6 {[%emt 0:01:00]} 15. Nb5 {[%emt 0:00:32]} Nf6 {[%emt 0:11:38]} 16. Be1 {[%emt 0:04:14]} g5 {[%emt 0:06:02]} 17. Nf2 {[%emt 0:00:55]} h5 {[%emt 0:03:20]} 18. h3 {[%emt 0:00:10]} Rf7 {[%emt 0:21:18]} 19. b4 {[%emt 0:00:23]} Neg8 {[%emt 0:03:02]} 20. bxa5 {[%emt 0:00:14]} bxa5 {[%emt 0:00:12]} 21. c5 {[%emt 0:01:01]} Bf8 {[%emt 0:09:18]} 22. Na3 {[%emt 0:21:35]} Rg7 {[%emt 0:06:03]} 23. Nc4 {[%emt 0:01:00]} Nh6 {[%emt 0:02:07]} 24. Bc3 {[%emt 0:09:22]} g4 {[%emt 0:09:44]} 25. fxg4 {[%emt 0:03:34]} hxg4 {[%emt 0:00:07]} 26. hxg4 {[%emt 0:00:05]} Nfxg4 {[%emt 0:01:42]} 27. Nxg4 {[%emt 0:04:09]} Bxg4 {[%emt 0:02:19]} 28. Ra2 {[%emt 0:32:18]} Qh4 {[%emt 0:03:53]} 29. Be1 {[%emt 0:05:34]} Qh5 {[%emt 0:00:25]} 30. g3 {[%emt 0:00:17]} Be7 {[%emt 0:01:57]} 31. Bf3 {[%emt 0:00:36]} fxg3 {[%emt 0:01:24]} 32. Ne3 {[%emt 0:03:27]} Rag8 {[%emt 0:08:16]} 33. Bxg4 {[%emt 0:11:31]} Nxg4 {[%emt 0:00:05]} 34. Rf5 {[%emt 0:00:23]} Qh3 {[%emt 0:01:14]} 35. Nxg4 {[%emt 0:00:18]} Rxg4 {[%emt 0:00:33]} 36. Qf3 {[%emt 0:00:35]} Rh4 {[%emt 0:00:56]} 37. Rd2 {[%emt 0:01:25]} Qh2+ {[%emt 0:02:44]} 38. Kf1 {[%emt 0:00:08]} g2+ {[%emt 0:01:16]} 39. Rxg2 {[%emt 0:00:15]} Qh1+ {[%emt 0:00:17]} 40. Ke2 {[%emt 0:01:14]} Qxg2+ {[%emt 0:00:08]} 0-1